Cogmind - Beta 12 @@@ ROGUE MODE // 2023.09.10 @ 19:19:46 Player: JavaGenius Result: Destroyed by G-67 Veteran with Plasma Rifle Performance ------------- Evolutions (6) 3000 Regions Visited (14) 2800 Robots Destroyed (97) 485 Value Destroyed (3568) 3568 Prototype IDs (22) 440 Alien Tech Used (0) 0 Bonus (441) 441 TOTAL SCORE: 10734 Bonus ------- High Alert Combat Kills 64 Follower Combat Kills 111 Met Data Miner 300 Friendly Fire -34 Cogmind --------- Core Integrity 0/1150 Matter 30/300 Energy 100/100 System Corruption 6% Temperature Cool (12) Movement Core (50) Location -4/Factory Parts ------- > --- POWER (3) -------- (None) > --- PROPULSION (5) --- (None) > --- UTILITY (8) ------ Advanced Targeting Computer > --- WEAPON (3) ------- (None) > --- INVENTORY (5) ---- Advanced Melee Analysis Suite Precision Energy Filter Heavy Phase Cannon Hypervelocity Gauss Cannon Peak State ------------ > --- POWER ------------ Light Fission Core > --- PROPULSION ------- Gravmag System Gravmag System Linear Gravjet Linear Gravjet > --- UTILITY ---------- High-capacity Battery Enhanced Optical Array Spectral Analyzer Seismic Detector Improved Targeting Computer Advanced Targeting Computer Improved Component Analysis Suite > --- WEAPON ----------- Plasma Rifle Coil Gun Coil Gun > --- INVENTORY -------- Flexi-carbon Leg Linear Gravjet Remote Datajack [Rating: 68] Favorites ----------- Power Cooled Ion Engine Engine Cooled Ion Engine Power Core Light Fission Core Propulsion Aluminum Leg Treads Medium Treads Leg Aluminum Leg Wheel Wheel Hover Unit Gravmag System Flight Unit Field Propulsion Drive Utility Targeting Computer Device Seismic Detector Storage Small Storage Unit Processor Targeting Computer Hackware Makeshift System Shield Protection Hardened Medium Armor Plating Weapon Heavy Assault Rifle Energy Gun Lightning Gun Energy Cannon EM Pulse Cannon Ballistic Gun Heavy Assault Rifle Ballistic Cannon Improved Light Cannon Impact Weapon Heavy Hammer Slashing Weapon Axe Special Melee Weapon Improved Datajack Build | -11 -10 -10 -9 -8 -7 -7 -7 -7 -6 -6 -6 -6 -5 -4 ------- Run | Jun Mat Min Mat Mat Fac Low Low Dat Pro Fac Was Fac Fac Fac Slots Evolved 12 | . . . 2 2 2 . . . . 2 . . 2 2 Power 2 | . . . . . . . . . . 1 . . . 1 Propulsion 3 | . . . . 1 . . . . . . . . 1 1 Utility 6 | . . . 2 1 2 . . . . . . . 1 . Weapon 1 | . . . . . . . . . . 1 . . . . Parts Attached 158 | 5 16 2 18 30 14 6 9 . 10 13 2 16 13 4 Power 19 | 1 3 1 2 2 3 2 1 . 1 3 . . . . Engine 10 | 1 3 1 2 . 1 . . . 1 1 . . . . Core 9 | . . . . 2 2 2 1 . . 2 . . . . Reactor . | . . . . . . . . . . . . . . . Propulsion 47 | 2 2 . 3 13 3 1 1 . 3 3 1 7 7 1 Treads 3 | . . . . 2 . . 1 . . . . . . . Leg 26 | . 2 . 1 11 3 1 . . 3 3 1 1 . . Wheel 4 | 2 . . 2 . . . . . . . . . . . Hover 12 | . . . . . . . . . . . . 6 6 . Flight 2 | . . . . . . . . . . . . . 1 1 Utility 42 | . 2 1 5 6 4 3 3 . 5 2 1 5 4 1 Device 21 | . 2 1 2 4 2 2 1 . 1 1 . 2 2 1 Storage 4 | . . . . 1 . . 1 . 1 . . 1 . . Processor 9 | . . . 2 . . 1 . . 2 1 1 1 1 . Hackware 2 | . . . . . . . . . 1 . . . 1 . Protection 6 | . . . 1 1 2 . 1 . . . . 1 . . Artifact . | . . . . . . . . . . . . . . . Weapon 50 | 2 9 . 8 9 4 . 4 . 1 5 . 4 2 2 Energy Gun 14 | 1 3 . 1 5 1 . . . . 2 . 1 . . Energy Cannon 5 | . 2 . 1 1 . . . . . . . 1 . . Ballistic Gun 15 | 1 4 . . . . . 4 . 1 2 . 1 2 . Ballistic Cannon 5 | . . . . . 2 . . . . 1 . . . 2 Launcher . | . . . . . . . . . . . . . . . Special Weapon . | . . . . . . . . . . . . . . . Impact Weapon 3 | . . . 3 . . . . . . . . . . . Slashing Weapon 6 | . . . 3 2 1 . . . . . . . . . Piercing Weapon . | . . . . . . . . . . . . . . . Special Melee Weapon 2 | . . . . 1 . . . . . . . 1 . . Unidentified Prototypes 6 | . 2 . . . . . . . 2 . 1 1 . . Corrupted Parts 1 | . . . . . . 1 . . . . . . . . System Corruption 12 | . . . . . . 12 . . . . . . . . Parts Lost 72 | . 2 . 8 12 10 7 1 . 2 10 4 2 1 13 Power 9 | . . . 1 1 2 1 . . . 3 . . . 1 Propulsion 22 | . 2 . 3 4 3 1 1 . 1 . 1 2 . 4 Utility 26 | . . . 3 3 4 4 . . 1 3 1 . . 7 Weapon 15 | . . . 1 4 1 1 . . . 4 2 . 1 1 Highest Loss Streak 13 | . 1 . 4 4 6 7 1 . 1 6 4 2 1 13 To Critical Strikes . | . . . . . . . . . . . . . . . Average Slot Usage (%) 78 | . 96 99 71 82 74 79 53 53 84 85 72 69 79 63 Engine 4 | . 14 13 7 3 . . . . 6 3 . . . . Core 3 | . . . . 5 6 6 4 . . 2 6 6 5 4 Leg 15 | . 18 28 9 20 21 22 11 7 15 19 12 . . . Wheel 1 | . 7 . 5 1 . . . . . . . . . . Hover 2 | . . . . . . . . . . . . 16 23 18 Device 15 | . 27 28 15 17 21 15 4 7 11 10 4 5 13 10 Storage 3 | . . . . 8 7 6 . . 3 6 4 2 5 4 Processor 8 | . . . 11 7 . 2 7 7 19 20 32 22 19 14 Protection 2 | . . . 2 1 3 7 7 7 3 . . . . . Energy Gun 4 | . 8 . 2 9 1 6 . . . 4 3 5 5 4 Ballistic Gun 8 | . 17 28 5 . . . 10 15 15 9 3 4 2 . Ballistic Cannon 1 | . . . . . 3 7 3 . . 1 3 . . . Naked Turns . | . . . . . . . . . . . . . . . Heaviest Build 47 | 6 17 16 18 30 31 47 31 16 21 34 27 28 27 18 Greatest Support 58 | 20 20 20 20 54 54 43 28 28 58 58 58 29 36 36 Greatest Overweight (x) 5 | . 5 . 2 . . 1 3 . 1 . 2 1 5 1 Average Overweight (x) . | . . . . . . . . . . . . . . . Largest Inventory Capacity 8 | 5 5 5 5 8 8 8 5 5 5 5 5 5 5 5 Average Capacity 5 | 5 5 5 5 7 8 7 5 5 5 5 5 5 5 5 Most Carried 8 | 4 5 5 5 6 7 8 5 5 5 5 4 5 5 5 Average Carried 4 | 1 3 3 3 3 4 6 4 5 4 4 3 4 4 4 Final Capacity 8 | 5 5 5 5 8 8 5 5 5 5 5 5 5 5 5 Final Carried 5 | 3 3 4 2 4 5 5 5 5 5 3 4 4 5 4 Class Distribution -------------------- 64% | Mutant 28% | Scavenger-Mutant 4% | Scavenger-Gunner Dominant Class ---------------- Mutant | -10/Materials Mutant | -10/Mines Mutant | -9/Materials Scavenger-Mutant | -8/Materials Mutant | -7/Factory Mutant | -7/Lower Caves Mutant | -7/Lower Caves Mutant | -7/Data Miner Scavenger-Mutant | -6/Proximity Caves Scavenger-Gunner | -6/Factory Scavenger-Gunner | -6/Waste Mutant | -6/Factory Mutant | -5/Factory Mutant | -4/Factory Resources | -11 -10 -10 -9 -8 -7 -7 -7 -7 -6 -6 -6 -6 -5 -4 ----------- Run | Jun Mat Min Mat Mat Fac Low Low Dat Pro Fac Was Fac Fac Fac Matter Collected 2582 | 252 184 110 203 300 146 160 308 . 329 465 . . 78 47 Remotely 561 | . . . . . . . 230 . 284 47 . . . . Salvage Created 4164 | 47 473 190 536 988 750 39 91 . 228 578 . . 126 118 Parts 205 | 3 21 15 31 35 27 4 6 . 7 33 . . 6 17 Haulers Intercepted . | . . . . . . . . . . . . . . . Recyclers Shooed 4 | . . . . 2 1 . . . . 1 . . . . Parts Field Recycled . | . . . . . . . . . . . . . . . Retrieved Matter . | . . . . . . . . . . . . . . . Parts Self-Destructed 32 | . . . . . . 9 9 . 14 . . . . . Prevented 3 | . . . . . . 1 2 . . . . . . . Kills | -11 -10 -10 -9 -8 -7 -7 -7 -7 -6 -6 -6 -6 -5 -4 ------- Run | Jun Mat Min Mat Mat Fac Low Low Dat Pro Fac Was Fac Fac Fac Combat Hostiles Destroyed 84 | 1 9 6 12 13 12 1 4 . 4 13 . . 5 4 Melee 21 | . . . 7 5 9 . . . . . . . . . Guns 42 | 1 7 6 1 6 . . 4 . 4 9 . . 4 . Cannons 16 | . 1 . 3 2 2 . . . . 4 . . . 4 AOE 2 | . . . . . 1 1 . . . . . . . . Classes Destroyed 12 | 1 1 1 1 3 2 . . . . . . . . 3 Builder 1 | . . . . . . . . . . . . . . 1 Tunneler 1 | . . . . . . . . . . . . . . 1 Recycler 6 | . . . . 4 2 . . . . . . . . . Watcher 5 | . 2 . 1 1 . . . . . 1 . . . . Swarmer 18 | . . 2 3 . . . 4 . . 4 . . 5 . Cutter 4 | . . . . . . . . . . . . . . 4 Grunt 41 | 1 9 4 3 6 9 . . . 4 5 . . . . Brawler 2 | . . . . 2 . . . . . . . . . . Duelist 1 | . . . . . 1 . . . . . . . . . Sentry 13 | . . . 6 4 1 . . . . 2 . . . . Hunter 3 | . . . . 1 . 1 . . . 1 . . . . Programmer 2 | . . . . . 1 . . . . 1 . . . . Best Kill Streak 6 | 1 3 2 5 5 4 1 2 . 2 6 . . 5 5 Combat Bots Only 6 | 1 2 2 5 3 3 1 2 . 2 6 . . 5 4 Max Kills in Single Turn 2 | 1 1 1 1 1 1 1 1 . 1 2 . . 1 1 Gunslinging . | . . . . . . . . . . . . . . . Exploded 1 | . . . . . 1 1 . . . . . . . . Melee 1 | . . . 1 1 1 . . . . . . . . . Uniques/NPCs Destroyed . | . . . . . . . . . . . . . . . Combat | -11 -10 -10 -9 -8 -7 -7 -7 -7 -6 -6 -6 -6 -5 -4 -------- Run | Jun Mat Min Mat Mat Fac Low Low Dat Pro Fac Was Fac Fac Fac Damage Taken 10136 | 24 233 163 991 2015 1267 890 343 . 389 1198 146 422 307 1748 Core 2843 | 12 58 11 358 485 139 99 33 . 79 205 99 84 26 1155 Absorbed by Shields . | . . . . . . . . . . . . . . . Regen/Repaired (Parts) 115 | . . . . . . . . . . 115 . . . . Core Remaining (%) 54 | 95 . 67 10 11 . . . . 50 . . 54 97 . Volleys Fired 241 | 2 23 13 13 53 20 13 18 . 22 38 . . 17 9 Largest 3 | 2 2 2 2 2 2 2 2 . 2 3 . . 2 2 Hottest 182 | 60 100 46 112 134 94 94 56 . 58 182 . . 105 136 Shots Fired 452 | 4 45 26 25 89 26 28 31 1 43 96 . . 27 11 Gun 361 | 4 39 26 21 72 6 13 30 1 43 75 . . 27 4 Cannon 91 | . 6 . 4 17 20 15 1 . . 21 . . . 7 Launcher . | . . . . . . . . . . . . . . . Special . | . . . . . . . . . . . . . . . Kinetic 237 | 2 4 26 18 . 20 15 31 1 43 60 . . 10 7 Thermal 115 | . 6 . 3 72 . . . . . 13 . . 17 4 Explosive . | . . . . . . . . . . . . . . . Electromagnetic 100 | 2 35 . 4 17 6 13 . . . 23 . . . . Robot Hit Streak 23 | 2 9 6 23 15 13 12 5 . 13 15 . . 5 5 Robot Miss Streak 8 | 1 3 2 1 2 4 7 5 . 2 8 . . 2 2 Penetration Max 1 | . . . . . . . . . . 1 . . . . Secondary Targets 2 | . 1 . . . . . 1 . . . . . . . Max Gunslinging Chain 1 | . 1 . . . . . 1 . . . . . . . Shots Hit Robots 414 | 3 35 16 54 93 55 17 18 . 30 68 . . 18 7 Core Hits 182 | 2 19 9 13 33 19 3 7 . 10 55 . . 4 8 Critical Kills 1 | . . . . . . . 1 . . . . . . . Critical Parts Destroyed 4 | . . . 2 . . . 1 . 1 . . . . . Critical Strikes 19 | . . . 3 8 3 . 2 . 1 . . . . 2 Burn 8 | . . . 1 7 . . . . . . . . . . Destroy 3 | . . . . . . . 2 . 1 . . . . . Blast 3 | . . . . . 1 . . . . . . . . 2 Smash 2 | . . . 2 . . . . . . . . . . . Sever 3 | . . . . 1 2 . . . . . . . . . Melee Attacks 120 | . . . 47 30 43 . . . . . . . . . Impact 18 | . . . 18 . . . . . . . . . . . Slashing 100 | . . . 29 30 41 . . . . . . . . . Piercing . | . . . . . . . . . . . . . . . Sneak Attacks 5 | . . . . 3 2 . . . . . . . . . Combat Hostiles 1 | . . . . 1 . . . . . . . . . . Follow-up Attacks 6 | . . . 6 . . . . . . . . . . . Damage Inflicted 9402 | 39 555 242 1452 2050 1663 354 217 . 705 1452 . . 399 274 Guns 4598 | 39 487 242 274 873 102 142 217 . 705 1075 . . 399 43 Cannons 1548 | . 68 . 78 247 391 161 . . . 377 . . . 226 Explosions 51 | . . . . . . 51 . . . . . . . . Melee 3200 | . . . 1100 930 1170 . . . . . . . . . Ramming 5 | . . . . . . . . . . . . . . 5 Kinetic 3289 | 12 46 242 245 . 391 161 217 . 705 915 . . 129 226 Thermal 1521 | . 68 . 29 873 . 51 . . . 187 . . 270 43 Explosive . | . . . . . . . . . . . . . . . Electromagnetic 1387 | 27 441 . 78 247 102 142 . . . 350 . . . . Impact 522 | . . . 522 . . . . . . . . . . . Slashing 2678 | . . . 578 930 1170 . . . . . . . . . Piercing . | . . . . . . . . . . . . . . . Highest Corruption 22 | . 5 5 1 5 . 22 22 22 22 . . 11 . 6 Average Corruption 11 | . 2 5 1 5 . 12 22 22 22 . . 10 . 3 Corruption Purged . | . . . . . . . . . . . . . . . Corruption Blocked . | . . . . . . . . . . . . . . . Effects 189 | . 12 18 3 29 . 14 55 7 37 . . 14 . . Message Errors 39 | . 1 6 . 8 . 2 12 1 7 . . 2 . . Matter Fused 43 | . 3 1 1 4 . 6 13 3 10 . . 2 . . Heat Flow Errors 19 | . 1 1 . 4 . 1 5 1 3 . . 3 . . Energy Discharges 25 | . 3 3 . 2 . 1 9 1 2 . . 4 . . Parts Rejected 4 | . . 1 . 2 . . 1 . . . . . . . Parts Fused 2 | . . . . 1 . . 1 . . . . . . . Data Loss (minor) 24 | . 1 4 . 3 . 2 8 . 3 . . 3 . . Data Loss (major) 9 | . 2 . 2 1 . . 3 . 1 . . . . . Misfires 14 | . 1 1 . 3 . 2 2 1 4 . . . . . Alerts 2 | . . . . . . . . . 2 . . . . . Misdirections 1 | . . . . . . . 1 . . . . . . . Weapon Failures 7 | . . 1 . 1 . . . . 5 . . . . . Overload Shots . | . . . . . . . . . . . . . . . Overflow Damage 382 | . . . 156 107 119 . . . . . . . . . Projectiles 17 | . . . . 7 10 . . . . . . . . . Explosions . | . . . . . . . . . . . . . . . Melee 365 | . . . 156 100 109 . . . . . . . . . Knockbacks 21 | . . . 1 . 2 . . . . 17 . . . 1 Impact 1 | . . . 1 . . . . . . . . . . . Kinetic 17 | . . . . . 2 . . . . 14 . . . 1 Secondary 3 | . . . . . . . . . . 3 . . . . Self-Inflicted Damage 2 | . . . . . . . . . . . . . . 2 Shots . | . . . . . . . . . . . . . . . Rammed 1 | . . . . . . . . . . . . . . 1 Targets Rammed 2 | . . . . . . 1 . . . . . . . 1 Kicked 1 | . . . . . . 1 . . . . . . . . Crushed . | . . . . . . . . . . . . . . . Highest Temperature 404 | 20 118 143 57 219 17 234 263 246 246 48 . 176 404 54 Average Temperature 85 | 15 30 74 21 65 10 105 116 132 53 18 . 78 200 24 Received Heat Transfer 2685 | 12 156 86 321 882 582 132 . . 207 177 . 12 12 106 Effects 1 | . . . . . . . . . . . . . 1 . Shutdowns 1 | . . . . . . . . . . . . . 1 . Siege Activations . | . . . . . . . . . . . . . . . Robots Corrupted 1 | . 1 . . . . . . . . . . . . . Combat Hostiles 1 | . 1 . . . . . . . . . . . . . Parts Fried 12 | . 9 . 2 . 1 . . . . . . . . . Impact Corruptions 5 | . . . 5 . . . . . . . . . . . Robots Melted 1 | . . . . . . . . . . . . . 1 . Combat Hostiles 1 | . . . . . . . . . . . . . 1 . Parts Melted 10 | . . . . 9 . . . . . . . . 1 . Heat Transferred 3986 | . 148 . 148 2620 . . . . . 370 . . 600 100 Parts Sabotaged . | . . . . . . . . . . . . . . . Parts Stolen . | . . . . . . . . . . . . . . . Parts Stripped . | . . . . . . . . . . . . . . . Power Chain Reactions 1 | . . . . . . 1 . . . . . . . . Missiles Intercepted . | . . . . . . . . . . . . . . . Alert | -11 -10 -10 -9 -8 -7 -7 -7 -7 -6 -6 -6 -6 -5 -4 ------- Run | Jun Mat Min Mat Mat Fac Low Low Dat Pro Fac Was Fac Fac Fac Peak Influence 532 | 20 206 178 205 259 269 . . . . 532 169 165 354 262 Initial 462 | . 13 13 . 22 44 . . . . 462 159 90 70 172 Average 127 | 5 38 41 68 121 117 . . . . 430 145 116 173 187 Maximum Alert Level 2 | . 1 . 1 1 1 . . . . 2 . . 1 1 Low Security (%) 82 | 100 98 100 95 94 78 . . . . 2 100 100 47 80 Level 1 9 | . 1 . 4 5 21 . . . . 27 . . 52 19 Level 2 7 | . . . . . . . . . . 70 . . . . Level 3 . | . . . . . . . . . . . . . . . Level 4 . | . . . . . . . . . . . . . . . Level 5 . | . . . . . . . . . . . . . . . High Security . | . . . . . . . . . . . . . . . Max Security . | . . . . . . . . . . . . . . . Squads Dispatched 15 | . 2 . 1 2 2 . . . . 4 . . . 4 Investigation 6 | . 1 . 1 2 . . . . . . . . . 2 Extermination 2 | . . . . . 1 . . . . 1 . . . . Reinforcement 6 | . 1 . . . 1 . . . . 2 . . . 2 Assault . | . . . . . . . . . . . . . . . Garrison 1 | . . . . . . . . . . 1 . . . . Intercept . | . . . . . . . . . . . . . . . Searches Triggered 1 | . . . . . . . . . . 1 . . . . Data Miner Redirects 2 | . . . . . . . . . . . . . . 2 Construction Impeded . | . . . . . . . . . . . . . . . Haulers Reinforced 1 | . . . . . . . . . . . . . . 1 Active Scanning Responses . | . . . . . . . . . . . . . . . Cargo Convoy Interrupts . | . . . . . . . . . . . . . . . Stealth | -11 -10 -10 -9 -8 -7 -7 -7 -7 -6 -6 -6 -6 -5 -4 --------- Run | Jun Mat Min Mat Mat Fac Low Low Dat Pro Fac Was Fac Fac Fac Distress Signals 6 | . . . 1 2 . . . . . . . . . 3 Communications Jammed 5 | . . . . . . . . . . . . . . 5 Distress Signals 5 | . . . . . . . . . . . . . . 5 Times Spotted 190 | 1 17 15 14 30 23 11 6 . 8 18 7 4 11 25 Peak Tracking Total 18 | 1 3 10 5 8 5 4 3 . 6 6 5 2 6 18 Tactical Retreats 31 | . 1 3 . 7 7 3 2 . . . 2 1 2 3 Traps | -11 -10 -10 -9 -8 -7 -7 -7 -7 -6 -6 -6 -6 -5 -4 ------- Run | Jun Mat Min Mat Mat Fac Low Low Dat Pro Fac Was Fac Fac Fac Traps Triggered 14 | . 4 . 1 2 . . . . . 2 . 3 1 1 Indirectly . | . . . . . . . . . . . . . . . Trap Hack Attempts . | . . . . . . . . . . . . . . . Triggered . | . . . . . . . . . . . . . . . Disarmed . | . . . . . . . . . . . . . . . Reprogrammed . | . . . . . . . . . . . . . . . Reused . | . . . . . . . . . . . . . . . Traps Extracted . | . . . . . . . . . . . . . . . Installed . | . . . . . . . . . . . . . . . Triggered 5 | . . . . . 1 . 3 . 1 . . . . . Machines | -11 -10 -10 -9 -8 -7 -7 -7 -7 -6 -6 -6 -6 -5 -4 ---------- Run | Jun Mat Min Mat Mat Fac Low Low Dat Pro Fac Was Fac Fac Fac Machines Disabled 3 | . . . . 1 . . . . . 2 . . . . Max in Single Turn 1 | . . . . 1 . . . . . 1 . . . . Machines Repaired . | . . . . . . . . . . . . . . . Machines Sabotaged . | . . . . . . . . . . . . . . . Overloaded Fab Kills . | . . . . . . . . . . . . . . . Hacking | -11 -10 -10 -9 -8 -7 -7 -7 -7 -6 -6 -6 -6 -5 -4 --------- Run | Jun Mat Min Mat Mat Fac Low Low Dat Pro Fac Was Fac Fac Fac Machines Accessed 43 | . 9 . 5 6 3 2 . 4 1 3 . 2 4 4 Terminals 27 | . 7 . 5 6 2 . . . 1 1 . 1 3 1 Fabricators 1 | . . . . . . . . . . . . . . 1 Repair Stations 5 | . 1 . . . . . . . . 1 . 1 1 1 Recycling Units 3 | . 1 . . . 1 . . . . . . . . 1 Scanalyzers . | . . . . . . . . . . . . . . . Garrison Access 1 | . . . . . . . . . . 1 . . . . Total Hacks 117 | . 19 . 15 13 5 5 . 31 1 8 . 3 7 10 Successful 77 | . 7 . 12 4 3 5 . 31 1 5 . 2 3 4 Failed 40 | . 12 . 3 9 2 . . . . 3 . 1 4 6 Catastrophic 12 | . 5 . 2 2 . . . . . 1 . 1 1 . Database Lockouts . | . . . . . . . . . . . . . . . Manual 18 | . 4 . 3 4 . . . 1 1 1 . . 3 1 Terminals 61 | . 17 . 15 13 4 . . . 1 2 . 2 5 2 Fabricators 2 | . . . . . . . . . . . . . . 2 Repair Stations 11 | . 1 . . . . . . . . 4 . 1 2 3 Recycling Units 5 | . 1 . . . 1 . . . . . . . . 3 Scanalyzers . | . . . . . . . . . . . . . . . Garrison Access 2 | . . . . . . . . . . 2 . . . . Terminal Hacks 66 | . 5 . 12 4 2 5 . 31 1 1 . 2 2 1 Record 30 | . 2 . 7 . . 4 . 11 1 . . 2 2 1 Part Schematic 11 | . . . . . . . . 11 . . . . . . Robot Schematic 6 | . . . . . . . . 6 . . . . . . Prototype ID Bank 5 | . . . . 2 . . . 3 . . . . . . Open Door 1 | . . . . . . 1 . . . . . . . . Open DSF 1 | . . . . . 1 . . . . . . . . . Level Access Points 1 | . . . . 1 . . . . . . . . . . Branch Access Points 2 | . 1 . . . 1 . . . . . . . . . Emergency Access Points 2 | . . . 1 1 . . . . . . . . . . Alert Level 3 | . 1 . 1 . . . . . . 1 . . . . Locate Traps 3 | . 1 . 2 . . . . . . . . . . . Hauler Manifests 1 | . . . 1 . . . . . . . . . . . Fabricator Hacks 2 | . . . . . . . . . . . . . . 2 Load Schematic 1 | . . . . . . . . . . . . . . 1 Build 1 | . . . . . . . . . . . . . . 1 Repair Station Hacks 5 | . . . . . . . . . . 4 . . 1 . Scan Component 3 | . . . . . . . . . . 2 . . 1 . Repair 2 | . . . . . . . . . . 2 . . . . Recycling Unit Hacks 3 | . 1 . . . 1 . . . . . . . . 1 Recycle Component 1 | . . . . . . . . . . . . . . 1 Report Inventory 2 | . 1 . . . 1 . . . . . . . . . Scanalyzer . | . . . . . . . . . . . . . . . Garrison Access Hacks . | . . . . . . . . . . . . . . . Unauthorized Hacks 1 | . 1 . . . . . . . . . . . . . Terminals 1 | . 1 . . . . . . . . . . . . . Botnet 1 | . 1 . . . . . . . . . . . . . Fabricators . | . . . . . . . . . . . . . . . Repair Stations . | . . . . . . . . . . . . . . . Recycling Units . | . . . . . . . . . . . . . . . Scanalyzers . | . . . . . . . . . . . . . . . Garrison Access . | . . . . . . . . . . . . . . . Data Cores Recovered . | . . . . . . . . . . . . . . . Used . | . . . . . . . . . . . . . . . Hacking Detections 27 | . 8 . 4 4 1 . . . . 2 . 2 3 3 Full Trace Events 5 | . 1 . 2 . . . . . . . . . . 2 Feedback Events . | . . . . . . . . . . . . . . . Feedback Blocked . | . . . . . . . . . . . . . . . Robot Schematics Acquired 6 | . . . . . . . . 6 . . . . . . Robots Built . | . . . . . . . . . . . . . . . Authchips . | . . . . . . . . . . . . . . . Time . | . . . . . . . . . . . . . . . Total Robot Build Rating . | . . . . . . . . . . . . . . . Part Schematics Acquired 11 | . . . . . . . . 11 . . . . . . Parts Built . | . . . . . . . . . . . . . . . Authchips . | . . . . . . . . . . . . . . . Time 152 | . . . . . . . . . . . . . . 152 Total Part Build Rating . | . . . . . . . . . . . . . . . Parts Repaired 2 | . . . . . . . . . . 2 . . . . Time 76 | . . . . . . . . . . 76 . . . . Parts Recycled 1 | . . . . . . . . . . . . . . 1 Recycled Matter . | . . . . . . . . . . . . . . . Retrieved Matter . | . . . . . . . . . . . . . . . Retrieved Components . | . . . . . . . . . . . . . . . Parts Scanalyzed . | . . . . . . . . . . . . . . . Part Schematics Acquired . | . . . . . . . . . . . . . . . Parts Damaged . | . . . . . . . . . . . . . . . Bothacking | -11 -10 -10 -9 -8 -7 -7 -7 -7 -6 -6 -6 -6 -5 -4 ------------ Run | Jun Mat Min Mat Mat Fac Low Low Dat Pro Fac Was Fac Fac Fac Used RIF Installer . | . . . . . . . . . . . . . . . Robots Hacked 1 | . . . . . 1 . . . . . . . . . Non-combat . | . . . . . . . . . . . . . . . Combat 1 | . . . . . 1 . . . . . . . . . Robot Hacks Applied 1 | . . . . . 1 . . . . . . . . . parse_system 1 | . . . . . 1 . . . . . . . . . Relay Couplers Released . | . . . . . . . . . . . . . . . Fabnet Peak Effective % . | . . . . . . . . . . . . . . . Robots Rewired . | . . . . . . . . . . . . . . . Allies Hacked . | . . . . . . . . . . . . . . . Hacks Repelled . | . . . . . . . . . . . . . . . Allies | -11 -10 -10 -9 -8 -7 -7 -7 -7 -6 -6 -6 -6 -5 -4 -------- Run | Jun Mat Min Mat Mat Fac Low Low Dat Pro Fac Was Fac Fac Fac Total Allies 2 | . . . . . . . . . 1 . 1 . . . Largest Group 1 | . . . . . . . . . 1 . 1 . . . Highest-Rated Group 96 | . . . . . . . . . 96 . 31 . . . Highest-Rated Ally 96 | . . . . . . . . . 96 . 31 . . . Total Orders . | . . . . . . . . . . . . . . . Ally Attacks 30 | . . . . . . . . . 24 . 6 . . . Total Damage 777 | . . . . . . . . . 694 . 83 . . . Kills 5 | . . . . . . . . . 5 . . . . . Allies Corrupted . | . . . . . . . . . . . . . . . Allies Melted . | . . . . . . . . . . . . . . . Intel | -11 -10 -10 -9 -8 -7 -7 -7 -7 -6 -6 -6 -6 -5 -4 ------- Run | Jun Mat Min Mat Mat Fac Low Low Dat Pro Fac Was Fac Fac Fac Robot Analysis Total . | . . . . . . . . . . . . . . . Derelict Logs Recovered 7 | . . 2 . . . 1 3 . 1 . . . . . Drone Launches . | . . . . . . . . . . . . . . . Drone Recoveries . | . . . . . . . . . . . . . . . Exploration | -11 -10 -10 -9 -8 -7 -7 -7 -7 -6 -6 -6 -6 -5 -4 ------------- Run | Jun Mat Min Mat Mat Fac Low Low Dat Pro Fac Was Fac Fac Fac Turns Passed 9158 | 73 1190 619 800 967 540 1077 1251 124 706 639 211 393 258 310 Spaces Moved 6290 | 74 907 460 521 472 268 664 609 78 457 328 161 508 380 403 Core 259 | 20 4 . 156 . . . . . . . 40 . 1 38 Treads 401 | . . . . 51 . . 95 78 177 . . . . . Legs 3852 | . 608 460 196 402 268 664 514 . 280 328 121 11 . . Wheels 537 | 54 295 . 169 19 . . . . . . . . . . Hover 1241 | . . . . . . . . . . . . 497 379 365 Flight . | . . . . . . . . . . . . . . . Fastest Speed 32 | 50 80 120 50 80 120 120 160 160 120 120 120 52 32 33 Average Speed 115 | 71 109 120 105 126 120 138 190 160 135 120 127 63 38 67 Slowest Speed 330 | 80 300 120 190 170 120 190 330 160 190 120 150 190 300 120 Overloaded Moves . | . . . . . . . . . . . . . . . Propulsion Burnouts . | . . . . . . . . . . . . . . . Robots Hopped . | . . . . . . . . . . . . . . . Cave-ins Triggered . | . . . . . . . . . . . . . . . Exploration Rate (%) 48 | 9 96 96 40 45 8 77 83 68 74 10 80 18 11 12 Regions Visited 14 Branch Regions 5 Pre-discovered Areas 1 | . . . . . . . . 1 . . . . . . Known Exits Taken 4 | . 1 . . 1 1 . . . . . . 1 . . Unknown Exits Taken 8 | 1 . 1 1 . . 1 1 1 1 . . . 1 . Scrap Searched 9 | . . 1 . . . 2 3 . 3 . . . . . Spaces Dug . | . . . . . . . . . . . . . . . Terrain Destroyed 6 | . . . . . . 3 1 . . . . . 1 1 Melee . | . . . . . . . . . . . . . . . Projectile 3 | . . . . . . . 1 . . . . . 1 1 AOE 3 | . . . . . . 3 . . . . . . . . Terrain Rammed . | . . . . . . . . . . . . . . . Walls Destroyed . | . . . . . . . . . . . . . . . Machines Disabled . | . . . . . . . . . . . . . . . Actions | -11 -10 -10 -9 -8 -7 -7 -7 -7 -6 -6 -6 -6 -5 -4 --------- Run | Jun Mat Min Mat Mat Fac Low Low Dat Pro Fac Was Fac Fac Fac Total 7606 | 90 1065 501 683 704 388 793 672 77 498 496 166 581 461 431 Wait 604 | . 97 21 71 75 31 96 27 . 4 102 2 31 42 5 Move 6278 | 73 906 459 520 471 267 664 608 77 456 328 160 507 379 403 Hop . | . . . . . . . . . . . . . . . Pick Up 135 | 9 14 4 15 30 11 8 6 . 3 11 2 13 5 4 Fast Attach 27 | . . . . . . . 3 . 7 3 . 3 10 1 Attach 98 | 5 9 1 15 18 12 3 5 . 1 10 1 12 3 3 Detach 10 | . 1 . . 2 2 1 . . . . . 3 . 1 Swap 33 | . 7 1 3 12 2 3 1 . 2 . 1 1 . . Drop 67 | 1 8 2 7 13 . 5 4 . 3 4 . 11 5 4 Fire 241 | 2 23 13 13 53 20 13 18 . 22 38 . . 17 9 Melee 112 | . . . 39 30 43 . . . . . . . . . Ram 1 | . . . . . . . . . . . . . . 1 Kick . | . . . . . . . . . . . . . . . Crush . | . . . . . . . . . . . . . . . Escape Stasis . | . . . . . . . . . . . . . . . Rewire . | . . . . . . . . . . . . . . . Trap . | . . . . . . . . . . . . . . . Miscellaneous . | . . . . . . . . . . . . . . . Route ------- -11/Junkyard -10/Materials (discovered 4 exits: *Mat x3 / *Min) -10/Mines (discovered 2 exits: *Mat x2) -9/Materials (discovered 2 exits: *Mat / [*Sto]) -8/Materials (discovered 3 exits: *Fac x3) -7/Factory (discovered 4 exits: *Fac x2 / *Low x2) -7/Lower Caves -7/Lower Caves -7/Data Miner -6/Proximity Caves -6/Factory (discovered 3 exits: Fac / Low x2) -6/Waste -6/Factory -5/Factory -4/Factory (discovered 1 exit: [*Ext]) History --------- Turn | Location | Event 2 | -11/Junkyard | Met Revision 17 45 | -11/Junkyard | Discovered new exit (range 8) 74 | -11/Junkyard | Entered Materials 170 | -10/Materials | Discovered new exit (range 4) 307 | -10/Materials | Build established: Mutant 327 | -10/Materials | Discovered new exit (range 9) 638 | -10/Materials | Discovered new exit (range 8) 827 | -10/Materials | Discovered new exit (range 11) 1181 | -10/Materials | Identified exit to Mines 1264 | -10/Materials | Entered Mines 1321 | -10/Mines | Assembled infested the area 1326 | -10/Mines | Assisted by a Guerilla fighting off Assembled 1365 | -10/Mines | Discovered new exit (range 6) 1438 | -10/Mines | Discovered new exit (range 8) 1517 | -10/Mines | Learned Materials stockpile data 1883 | -10/Mines | Entered Materials 1883 | -9/Materials | Evolved 2 slots: Utility x2 1883 | -9/Materials | Discovered new exit (range 8) 2256 | -9/Materials | Core integrity fell below 50% 2286 | -9/Materials | Lost 4 parts (1p2n1w) 2437 | -9/Materials | Discovered new exit (range 8) 2449 | -9/Materials | Core integrity fell below 20% 2683 | -9/Materials | Entered another Materials area 2683 | -8/Materials | Evolved 2 slots: Propulsion x1, Utility x1 2781 | -8/Materials | Build established: Scavenger-Mutant 2796 | -8/Materials | Lost 3 parts (1n2u) 3011 | -8/Materials | Lost 4 parts (1n1u2w) 3061 | -8/Materials | Core integrity fell below 50% 3344 | -8/Materials | Identified exit to Factory 3571 | -8/Materials | Core integrity fell below 20% 3650 | -8/Materials | Entered Factory 3650 | -7/Factory | Evolved 2 slots: Utility x2 3740 | -7/Factory | Identified exit to Lower Caves 3771 | -7/Factory | Discovered new exit (range 4) 3840 | -7/Factory | Build established: Mutant 4064 | -7/Factory | Lost 6 parts (1p3n2u) 4162 | -7/Factory | Discovered new exit (range 7) 4190 | -7/Factory | Entered Lower Caves 4366 | -7/Lower Caves | Build established: Scavenger-Mutant 4457 | -7/Lower Caves | Learned 8 Factory zone layouts 4468 | -7/Lower Caves | Encountered a Warlord checkpoint 4613 | -7/Lower Caves | Attracted the attention of an 0b10 checkpoint 4711 | -7/Lower Caves | Build established: Mutant 4820 | -7/Lower Caves | Learned Extension trap positions 4820 | -7/Lower Caves | Learned Extension stockpile data 4820 | -7/Lower Caves | Learned Factory security intel 4820 | -7/Lower Caves | Learned Extension garrison access intel 4945 | -7/Lower Caves | System corruption reached 10% 5067 | -7/Lower Caves | Discovered new exit (range 14) 5247 | -7/Lower Caves | Build established: Scavenger-Mutant 5267 | -7/Lower Caves | Entered another Lower Caves area 5287 | -7/Lower Caves | Encountered a Warlord checkpoint 5291 | -7/Lower Caves | Lost 7 parts (1p1n4u1w) 5430 | -7/Lower Caves | Learned 8 Factory zone layouts 5556 | -7/Lower Caves | Build established: Mutant 6421 | -7/Lower Caves | Discovered new exit (range 11) 6477 | -7/Lower Caves | Learned 4 Factory zone layouts 6518 | -7/Lower Caves | Entered Data Miner 6518 | -7/Data Miner | Discovered new exit (range 6) 6549 | -7/Data Miner | Met Data Miner 6581 | -7/Data Miner | Learned location of Section 7 (-2) 6581 | -7/Data Miner | Acquired the access code to Warlord's prototype stash 6606 | -7/Data Miner | Received God Mode back door access code from Data Miner 6642 | -7/Data Miner | Entered Proximity Caves 6734 | -6/Proximity Caves | Escorted by Enhanced Grunt 6734 | -6/Proximity Caves | Spotter reported a threat 6738 | -6/Proximity Caves | Spotter reported a threat 6829 | -6/Proximity Caves | Spotter reported a threat 7041 | -6/Proximity Caves | Build established: Scavenger-Mutant 7204 | -6/Proximity Caves | Learned 4 Factory zone layouts 7336 | -6/Proximity Caves | Discovered new exit (range 6) 7348 | -6/Proximity Caves | Entered Factory 7348 | -6/Factory | Evolved 2 slots: Power x1, Weapon x1 7349 | -6/Factory | Identified exit to Lower Caves 7350 | -6/Factory | Identified exit to Factory 7461 | -6/Factory | Lost 3 parts (1p1u1w) 7659 | -6/Factory | Repaired Carbon-fiber Leg 7698 | -6/Factory | Search patrols dispatched 7716 | -6/Factory | Repaired Carbon-fiber Leg 7790 | -6/Factory | Garrison activated, responded to threat 7842 | -6/Factory | Lost 6 parts (2p2u2w) 7987 | -6/Factory | Sucked down chute 7987 | -6/Factory | Entered Waste 7988 | -6/Waste | Met a frightened Derelict 8007 | -6/Waste | Found Prototype Processor 8008 | -6/Waste | Identified Spectral Analyzer 8028 | -6/Waste | Spotted C-40 Crusher 8052 | -6/Waste | Spotted C-40 Crusher 8079 | -6/Waste | Spotted C-40 Crusher 8087 | -6/Waste | Spotted C-40 Crusher 8088 | -6/Waste | Spotted C-40 Crusher 8104 | -6/Waste | Crushed by Compactor (1 part destroyed, 1 dropped) 8109 | -6/Waste | Crushed by Compactor (1 part destroyed, 1 dropped) 8138 | -6/Waste | Crushed by Compactor (1 part destroyed, 2 dropped) 8164 | -6/Waste | Spotted C-40 Crusher 8169 | -6/Waste | Lost 4 parts (1n1u2w) 8176 | -6/Waste | Discovered new exit (range 10) 8198 | -6/Waste | Entered Factory 8296 | -6/Factory | System corruption reached 10% 8527 | -6/Factory | Discovered exit to Factory (range 22) 8591 | -6/Factory | Entered another Factory area 8591 | -5/Factory | Evolved 2 slots: Propulsion x1, Utility x1 8679 | -5/Factory | Build established: Mutant 8841 | -5/Factory | Discovered new exit (range 4) 8849 | -5/Factory | Entered another Factory area 8849 | -4/Factory | Evolved 2 slots: Power x1, Propulsion x1 8871 | -4/Factory | Discovered new exit (range 13) 9053 | -4/Factory | Incoming investigation squad redirected 9119 | -4/Factory | Incoming investigation squad redirected 9137 | -4/Factory | Core integrity fell below 50% 9149 | -4/Factory | Core integrity fell below 20% 9159 | -4/Factory | Destroyed by G-67 Veteran with Plasma Rifle Last Messages --------------- 09143_ U-05 Engineer lays Concrete. 09144_ R-10 Processor collects Unknown Special Weapon. 09144_ Imp. Surge Thruster destroyed. 09144_ U-05 Engineer lays Concrete. 09144_ R-10 Processor collects Hpw. Tractor Beam. 09144_ U-05 Engineer lays Concrete. 09144_ Acquired 21 matter. 09144_ U-05 Engineer lays Concrete. 09145_ Slug penetrates Wall. 09145_ U-05 Engineer lays Concrete. 09146_ K-01 Serf collects debris. 09148_ U-05 Engineer lays Concrete. 09148_ R-10 Processor collects Unknown Wheel. 09148_ K-01 Serf collects debris. 09149_ W-44 Eye sends out distress signal. 09149_ U-05 Engineer lays Concrete. 09151_ Drone sends a signal. 09155_ Slammed into A-15 Conveyor. 09155_ A-15 Conveyor calls for reinforcements. 09155_ ALERT: Hostile activity reported, dispatching reinforcements to area. Map ----- +----------------------------------------------------+ | ?????????????????????????????????????????????????? | | ?????????????????????????????????????????????????? | | ?????????????????????????????????????????????????? | | ?????????????????????????????????????????????????? | | ?????????????????????????????????????????????????? | | ?????????????????????????????????????????????????? | | ?????????????????????????????????????????????????? | | ?????????????????????????????????????????????????? | | ?????????????????????????????????????????????????? | | ????????????????????????????????? ???????????????? | | ???????????????????????????????? ?????????????? | | ???##############???###########? #?????????????? | | ???# #???# #? #?????????????? | | ???# #???# = ## #?????????????? | | ???# = #???# ## #?????????????? | | ???# #???# """ ## #?????????????? | | ???# !! #???#""" """ ## #?????????????? | | ???# [ #???#"Y """ ## #?????????????? | | ???# #???#""" ## #?????????????? | | ???# #???# ## #?????????????? | | ???# ############+### ####?????????? | | ???# ! + #?????????? | | ???# ############## #?????????? | | ???# #????????????# ###########" | | ######+###+################### g | | kA @ g !* | | ###+##/## ########### %%/= | | ?# ## #?????????# % =! | | ?# #### #### #?????????# !%/ | | ?# """####+#### #?????????############"#######" | | ?# """# # #????????????????????###??????# | | ?# """#! """" # #?????????????????????????????# | | ?# # """" # #?????????????????????????????# | | ## """# """" # #????????????????????????????## | | ## """# """" # #????????????????????????????# | | ## """# """" + #????????????????????######## | | ## #! """" # #????????????????????# | | ## #! # #????????????????????# | | ## ######### ##???????????????????# "" | | T###+########## #???????????????????# """ """ | | T #???????????????????# "R """ | | "" +???????????????????# """ """ | | #???????????????????? "" | | ##### ####### #???????????????????# ? | | #???# #?????## ##???????????????#########+#### | | #???# #??????# #????????????????# = | | #???# #??????# #????????????????# | | ????# #??????# #????????????????# """ | | ????# #??????# #????????######??# """ " F" | | ????# #??????# #????????#""""#??# """ """" | +----------------------------------------------------+ Best States ------------- Heat Dissipation 84 Energy Generation 31 Energy Capacity 710 Matter Stores 300 Matter Capacity 300 Sight Range 22 Terrain Scan Range 14 Terrain Scan Density 85 ECM Strength 2 Jamming Range 12 Armor Coverage 225 Evasion (%) 58 Targeting Accuracy 14 Recoil Reduction 2 Particle Charging 25 Kinecelleration 30 Offensive Hacking 10 Defensive Hacking 11 Item Schematics ----------------- Combat Drone Bay | -7/Data Miner | Free Lgt. Regenerative Plating | -7/Data Miner | Free Cld. Cesium-ion Thruster | -7/Data Miner | Free Exp. Utility Shielding | -7/Data Miner | Free Cld. Plasma Cannon | -7/Data Miner | Free Arm. Medium Treads | -7/Data Miner | Free Imp. Remote Datajack | -7/Data Miner | Free Imp. Component Analysis Suite | -7/Data Miner | Free Hvy. Siege Treads | -7/Data Miner | Free Imp. Thermal Shield | -7/Data Miner | Free Recoil Nullifier | -7/Data Miner | Free Robot Schematics ------------------ B-48 Gladiator | -7/Data Miner | Free W-25 Informer | -7/Data Miner | Free O-24 Administrator | -7/Data Miner | Free Y-54 Guardian | -7/Data Miner | Free I-36 Angel | -7/Data Miner | Free A-15 Conveyor | -7/Data Miner | Free Fabricated ------------ Nothing Alien Tech Used ----------------- None Achievements -------------- I Survived The Infestation More Dakka Please Power Corrupts Slippery One Troublemaker True Hacker Use The Force Challenges ------------ None Game ------ Seed ThermalDispersionExpander Manual? 0 Play Time 02:01:42 Cumulative 8.1 hours Start 2023.09.10 @ 15:46:21 End 2023.09.10 @ 19:19:46 Sessions 3 Manual Loads 0 Difficulty Rogue Special Mode None Game No. 2 Rogue 2 Adventurer 0 Explorer 0 Win Type - Total 0 Types 0/0/0/0/0/0/0/0/0 Lore% 8 Gallery% 13 Achievement% 14 Wizard Run 0 Options --------- ASCII 0 Keyboard 0 Movement Mouse Keybinds 0 Fullscreen 1 Font 24/Terminus Map View 113x50 Tactical HUD 1 Map Filters NONE Filters NONE Steam 1 RUN: 097faebe-7001-4915-9f8c-b1b021dd6d03